fUST/lending_fUST_20251125
["ID","MTS","AMOUNT","RATE_DAILY","PERIOD"]
[394881415,1764058636491,-180.25141098,6.747e-05,2]
[394881416,1764058638789,-853.6362608,6.747e-05,2]
[394881417,1764058638807,-10000.01,6.747e-05,2]
[394881419,1764058642547,-300.0,6.747e-05,2]
[394881420,1764058642686,801.1650105,6.679e-05,2]
[394881421,1764058647027,-166.18416373,6.747e-05,2]
[394881422,1764058649327,-282.91524613,6.747e-05,2]
[394881423,1764058650584,248.86279623,6.679e-05,2]
[394881424,1764058654461,-500.0,6.747e-05,2]
[394881425,1764058656622,-290.6689341,6.747e-05,2]
[394881426,1764058659694,8949.98219327,6.679e-05,2]
[394881427,1764058659720,10000.01,6.679e-05,2]
[394881428,1764058659746,6124.11450179,6.679e-05,2]
[394881429,1764058664126,-270.19053779,6.747e-05,2]
[394881430,1764058668185,-243.66301174,6.747e-05,2]
[394881431,1764058671285,-368.22040299,6.747e-05,2]
[394881432,1764058673128,-424.17626708,6.747e-05,2]
[394881433,1764058675529,282.91524613,6.679e-05,2]
[394881434,1764058676649,-303.11182863,6.747e-05,2]
[394881435,1764058678250,-319.7608759,6.747e-05,2]
[394881436,1764058682636,-235.44258361,6.747e-05,2]
[394881437,1764058685568,-183.99231365,6.746e-05,2]
[394881438,1764058688320,-116.00768635,6.746e-05,2]
[394881439,1764058688351,-166.73903918,6.747e-05,2]
[394881440,1764058691736,-152.89953238,6.747e-05,2]
[394881441,1764058696116,-208.87630306,6.747e-05,2]
[394881442,1764058697861,-186.03807277,6.747e-05,2]
[394881443,1764058699633,-151.8744075,6.747e-05,2]
[394881444,1764058701865,-162.73361027,6.747e-05,2]
[394881445,1764058705929,-222.98722908,6.747e-05,2]
[394881446,1764058707483,-179.28524712,6.747e-05,2]
[394881447,1764058710832,-221.51030411,6.747e-05,2]
[394881448,1764058714687,-182.39026182,6.746e-05,2]
[394881449,1764058714712,-338.41735117,6.746e-05,2]
[394881451,1764058717623,-161.58264883,6.746e-05,2]
[394881452,1764058717654,-16.72353311,6.746e-05,2]
[394881453,1764058719782,-398.32102378,6.746e-05,2]
[394881454,1764058724586,-84.95544311,6.746e-05,2]
[394881455,1764058724613,-137.98946759,6.746e-05,2]
[394881456,1764058728105,-300.0,6.746e-05,2]
[394881457,1764058730256,-62.01053241,6.746e-05,2]
[394881458,1764058730281,-190.40883883,6.746e-05,2]
[394881459,1764058732395,-167.35545874,6.746e-05,2]
[394881460,1764058736333,-142.23570243,6.746e-05,2]
[394881461,1764058736360,-76.82851149,6.746e-05,2]
[394881462,1764058737980,-182.66432245,6.746e-05,2]
[394881463,1764058740687,-176.23278718,6.746e-05,2]
[394881464,1764058744423,-170.34685563,6.745e-05,2]
[394881465,1764058746668,-129.65314437,6.745e-05,2]
[394881466,1764058746693,-162.09581647,6.746e-05,2]
[394881467,1764058746717,-63.65646774,6.746e-05,2]
[394881468,1764058748806,-284.5102251,6.746e-05,2]
[394881469,1764058753498,-151.83330716,6.746e-05,2]
[394881470,1764058753531,-5.67319071,6.746e-05,2]
[394881471,1764058755720,-191.91200985,6.746e-05,2]
[394881473,1764058759682,-204.6205574,6.746e-05,2]
[394881474,1764058761504,-97.79424204,6.746e-05,2]
[394881475,1764058761529,-192.81856,6.746e-05,2]
[394881476,1764058768271,-286.86535909,6.746e-05,2]
[394881477,1764058771684,-20.31608091,6.746e-05,2]
[394881478,1764058771716,-168.10396001,6.746e-05,2]
[394881479,1764058775358,-300.0,6.746e-05,2]
[394881480,1764058778472,-300.0,6.746e-05,2]
[394881481,1764058781453,-200.0,6.746e-05,2]
[394881482,1764058781486,-48.97491769,6.746e-05,2]
[394881483,1764058785687,-202.54324198,6.746e-05,2]
[394881484,1764058787755,-235.66946358,6.746e-05,2]
[394881485,1764058793765,-160.43380442,6.746e-05,2]
[394881486,1764058793792,-127.84507645,6.746e-05,2]
[394881487,1764058797243,-268.96871057,6.746e-05,2]
[394881488,1764058799379,-239.2763403,6.678e-05,2]
[394881489,1764058799405,-69.28195118,6.746e-05,2]
[394881490,1764058802757,-196.43071042,6.745e-05,2]
[394881491,1764058804991,-103.56928958,6.745e-05,2]
[394881492,1764058805018,-84.11320133,6.745e-05,2]
[394881493,1764058807957,-196.43071042,6.678e-05,2]
[394881494,1764058807982,-122.94220597,6.745e-05,2]
[394881495,1764058810502,2342.0,0.000111,3]
[394881496,1764058810691,-291.90094229,6.745e-05,2]
[394881497,1764058812870,-273.03395984,6.745e-05,2]
[394881498,1764058814998,599.62227256,6.678e-05,2]
[394881499,1764058815836,-196.43071042,6.745e-05,2]
[394881500,1764058818546,-216.40344399,6.745e-05,2]
[394881501,1764058820281,-15.17553616,6.745e-05,2]
[394881502,1764058820306,-300.0,6.745e-05,2]
[394881503,1764058820335,-24.9763518,6.745e-05,2]
[394881504,1764058822769,821.17553616,6.678e-05,2]
[394881505,1764058824623,-192.30817301,6.745e-05,2]
[394881506,1764058827878,-82.71547519,6.745e-05,2]
[394881507,1764058827910,-136.91978986,6.745e-05,2]
[394881508,1764058834846,-269.1362405,6.745e-05,2]
[394881509,1764058837925,536.58259838,6.677e-05,2]
[394881510,1764058840175,-230.8637595,6.745e-05,2]
[394881511,1764058840203,-16.00775432,6.745e-05,2]
[394881512,1764058846406,1538.14240696,6.677e-05,2]
[394881513,1764058970823,600.0,6.675e-05,2]
[394881514,1764058993353,300.0,6.675e-05,2]
[394881515,1764059015739,300.0,6.675e-05,2]
[394881516,1764059038033,300.0,6.675e-05,2]
[394881517,1764059060978,300.0,6.675e-05,2]
[394881518,1764059083449,300.0,6.675e-05,2]
[394881519,1764059102892,1062.0,0.000111,3]
[394881520,1764059105755,300.0,6.675e-05,2]
[394881521,1764059128134,300.0,6.675e-05,2]
[394881522,1764059136589,300.0,6.675e-05,2]
[394881523,1764059144568,300.0,6.675e-05,2]
[394881528,1764059400803,10000.01,6e-05,2]
[394881529,1764059400826,10000.01,6e-05,2]
[394881530,1764059400852,10000.01,6e-05,2]
[394881531,1764059400876,1406.29889175,6e-05,2]
[394881532,1764059402161,158.8936434,6.656e-05,2]
[394881533,1764059404155,2363.67268001,6.673e-05,2]
[394881534,1764059412018,1500.0,6.673e-05,2]
[394881535,1764059420048,1500.0,6.673e-05,2]
[394881536,1764059428300,1500.0,6.673e-05,2]
[394881587,1764059436643,655.54338908,6.673e-05,2]
[394881609,1764059437648,-531.56359619,6.74e-05,2]
[394881612,1764059437698,-668.43640381,6.74e-05,2]
[394881613,1764059437709,-300.0,6.74e-05,2]
[394881614,1764059437719,-500.0,6.741e-05,2]
[394881615,1764059437728,-500.0,6.741e-05,2]
[394881616,1764059437738,-500.0,6.741e-05,2]
[394881617,1764059437747,-363.67268001,6.741e-05,2]
[394881618,1764059437756,-500.0,6.741e-05,2]
[394881619,1764059437765,-990.0,6.741e-05,2]
[394881620,1764059437775,-312.65824138,6.742e-05,2]
[394881621,1764059437784,-308.22143701,6.742e-05,2]
[394881622,1764059437793,-500.0,6.742e-05,2]
[394881623,1764059437803,-940.61852355,6.742e-05,2]
[394881624,1764059437812,-500.0,6.742e-05,2]
[394881625,1764059437821,-516.6588472,6.742e-05,2]
[394881626,1764059437831,-940.61852355,6.742e-05,2]
[394881627,1764059437840,-940.61852355,6.742e-05,2]
[394881628,1764059437852,-940.61852355,6.742e-05,2]
[394881629,1764059437862,-940.61852355,6.742e-05,2]
[394881630,1764059437871,-940.61852355,6.742e-05,2]
[394881631,1764059437881,-940.61852355,6.742e-05,2]
[394881632,1764059437891,-940.61852355,6.742e-05,2]
[394881633,1764059437900,-940.61852355,6.742e-05,2]
[394881634,1764059437909,-940.61852355,6.742e-05,2]
[394881635,1764059437918,-940.61852355,6.742e-05,2]
[394881636,1764059437931,-940.61852355,6.742e-05,2]
[394881637,1764059437940,-940.61852355,6.742e-05,2]
[394881638,1764059437949,-940.61852355,6.742e-05,2]
[394881639,1764059437960,-940.61852355,6.742e-05,2]
[394881640,1764059437969,-500.0,6.742e-05,2]
[394881641,1764059437979,-940.61852355,6.742e-05,2]
[394881642,1764059437989,-940.61852355,6.742e-05,2]
[394881643,1764059437998,-940.61852355,6.742e-05,2]
[394881644,1764059438008,-940.61852355,6.742e-05,2]
[394881645,1764059438018,-940.61852355,6.742e-05,2]
[394881646,1764059438028,-940.61852355,6.742e-05,2]
[394881647,1764059438038,-940.61852355,6.742e-05,2]
[394881648,1764059438048,-940.61852355,6.742e-05,2]
[394881649,1764059438057,-940.61852355,6.742e-05,2]
[394881650,1764059438067,-940.61852355,6.742e-05,2]
[394881651,1764059438078,-940.61852355,6.742e-05,2]
[394881652,1764059438089,-940.61852355,6.742e-05,2]
[394881653,1764059438100,-940.61852355,6.742e-05,2]
[394881654,1764059438111,-2526.86658036,6.742e-05,2]
[394881655,1764059438122,-2526.86658036,6.742e-05,2]
[394881656,1764059438133,-2526.86658036,6.742e-05,2]
[394881657,1764059438144,-2526.86658036,6.742e-05,2]
[394881658,1764059438155,-2526.86658036,6.742e-05,2]
[394881659,1764059438166,-2526.86658036,6.742e-05,2]
[394881660,1764059438178,-2526.86658036,6.742e-05,2]
[394881661,1764059438189,-2526.86658036,6.742e-05,2]
[394881662,1764059438200,-2526.86658036,6.742e-05,2]
[394881663,1764059438217,-2526.86658036,6.742e-05,2]
[394881664,1764059438227,-2526.86658036,6.742e-05,2]
[394881665,1764059438238,-2526.86658036,6.742e-05,2]
[394881666,1764059438251,-2526.86658036,6.742e-05,2]
[394881667,1764059438261,-2526.86658036,6.742e-05,2]
[394881668,1764059438271,-2526.86658036,6.742e-05,2]
[394881669,1764059438281,-2526.86658036,6.742e-05,2]
[394881670,1764059438291,-2526.86658036,6.742e-05,2]
[394881671,1764059438301,-2526.86658036,6.742e-05,2]
[394881672,1764059438311,-2526.86658036,6.742e-05,2]
[394881673,1764059438321,-2526.86658036,6.742e-05,2]
[394881674,1764059438331,-2526.86658036,6.742e-05,2]
[394881675,1764059438341,-2526.86658036,6.742e-05,2]
[394881676,1764059438351,-2526.86658036,6.742e-05,2]
[394881677,1764059438361,-2526.86658036,6.742e-05,2]
[394881678,1764059438371,-2526.86658036,6.742e-05,2]
[394881679,1764059438381,-2482.41244608,6.742e-05,2]
[394881680,1764059438391,-2482.41244608,6.742e-05,2]
[394881681,1764059438402,-2482.41244608,6.742e-05,2]
[394881682,1764059438412,-2482.41244608,6.742e-05,2]
[394881683,1764059438422,-2482.41244608,6.742e-05,2]
[394881684,1764059438431,-2482.41244608,6.742e-05,2]
[394881685,1764059438441,-2482.41244608,6.742e-05,2]
[394881686,1764059438452,-2482.41244608,6.742e-05,2]
[394881687,1764059438463,-2482.41244608,6.742e-05,2]
[394881688,1764059438473,-2482.41244608,6.742e-05,2]
[394881689,1764059438483,-2482.41244608,6.742e-05,2]
[394881690,1764059438493,-2482.41244608,6.742e-05,2]
[394881691,1764059438503,-2482.41244608,6.742e-05,2]
[394881692,1764059438512,-2482.41244608,6.742e-05,2]
[394881693,1764059438523,-2482.41244608,6.742e-05,2]
[394881694,1764059438532,-2482.41244608,6.742e-05,2]
[394881695,1764059438542,-2482.41244608,6.742e-05,2]
[394881696,1764059438552,-2482.41244608,6.742e-05,2]
[394881697,1764059438562,-2482.41244608,6.742e-05,2]
[394881698,1764059438572,-2482.41244608,6.742e-05,2]
[394881699,1764059438582,-2453.20759376,6.742e-05,2]
[394881700,1764059438592,-2453.20759376,6.742e-05,2]
[394881701,1764059438602,-2453.20759376,6.742e-05,2]
[394881702,1764059438612,-2453.20759376,6.742e-05,2]
[394881703,1764059438622,-2453.20759376,6.742e-05,2]
[394881704,1764059438632,-2453.20759376,6.742e-05,2]
[394881705,1764059438641,-2453.20759376,6.742e-05,2]
[394881706,1764059438651,-2453.20759376,6.742e-05,2]
[394881707,1764059438660,-2453.20759376,6.742e-05,2]
[394881708,1764059438670,-2453.20759376,6.742e-05,2]
[394881709,1764059438679,-2453.20759376,6.742e-05,2]
[394881710,1764059438688,-2453.20759376,6.742e-05,2]
[394881711,1764059438699,-2453.20759376,6.742e-05,2]
[394881712,1764059438709,-2453.20759376,6.742e-05,2]
[394881713,1764059438718,-2453.20759376,6.742e-05,2]
[394881714,1764059438727,-2453.20759376,6.742e-05,2]
[394881715,1764059438737,-2453.20759376,6.742e-05,2]
[394881716,1764059438746,-5959.8194854,6.742e-05,2]
[394881717,1764059438755,-6476.75959545,6.742e-05,2]
[394881718,1764059438765,-604.092178,6.742e-05,2]
[394881719,1764059438775,-604.092178,6.742e-05,2]
[394881720,1764059438784,-604.092178,6.742e-05,2]
[394881721,1764059438794,-604.092178,6.742e-05,2]
[394881722,1764059438803,-604.092178,6.742e-05,2]
[394881723,1764059438812,-604.092178,6.742e-05,2]
[394881724,1764059438821,-604.092178,6.742e-05,2]
[394881725,1764059438832,-604.092178,6.742e-05,2]
[394881726,1764059438841,-604.092178,6.742e-05,2]
[394881727,1764059438854,-6476.75959543,6.743e-05,2]
[394881728,1764059438865,-151.0,6.744e-05,2]
[394881729,1764059438876,-151.0,6.744e-05,2]
[394881730,1764059438886,-151.0,6.744e-05,2]
[394881731,1764059438896,-151.0,6.744e-05,2]
[394881732,1764059438906,-151.0,6.744e-05,2]
[394881733,1764059438915,-151.0,6.744e-05,2]
[394881734,1764059438925,-151.0,6.744e-05,2]
[394881735,1764059438935,-151.0,6.744e-05,2]
[394881736,1764059438944,-500.0,6.744e-05,2]
[394881737,1764059438954,-6476.75959543,6.745e-05,2]
[394881738,1764059438964,-6476.75959543,6.746e-05,2]
[394881739,1764059438974,-125118.62958815,6.747e-05,2]
[394881740,1764059438988,-214972.61956334,6.747e-05,2]
[394881757,1764059440048,-604.092178,6.742e-05,2]
[394881758,1764059440058,-604.092178,6.742e-05,2]
[394881759,1764059440068,-604.092178,6.742e-05,2]
[394881760,1764059440077,-81523.06570974,6.747e-05,2]
[394881761,1764059440857,-3e-08,6.747e-05,2]
[394881791,1764059444720,655.54338908,6.679e-05,2]
[394881797,1764059444842,-151.0,6.744e-05,2]
[394881798,1764059444854,-151.0,6.744e-05,2]
[394881799,1764059444864,-23715.28645131,6.747e-05,2]
[394881822,1764059445999,-151.0,6.744e-05,2]
[394881824,1764059446009,-37499.78416213,6.747e-05,2]
[394881827,1764059446020,-581.50000002,6.747e-05,2]
[394881832,1764059446290,-58832.1718911,6.747e-05,2]
[394881833,1764059446318,-2582.30630634,6.747e-05,2]
[394881834,1764059452523,511.28973604,6.677e-05,2]
[394881835,1764059460759,540.44883986,6.677e-05,2]
[394881836,1764059469037,150.0,6.677e-05,2]
[394881837,1764059477120,325.03758395,6.677e-05,2]
[394881838,1764059484992,1151.62422839,6.677e-05,2]
[394881839,1764059492877,1151.62422839,6.677e-05,2]
[394881840,1764059508084,1151.62422839,6.677e-05,2]
[394881841,1764059515837,1151.62422839,6.677e-05,2]
[394881842,1764059522216,158.89364341,6.656e-05,2]
[394881843,1764059539182,1151.62422839,6.677e-05,2]
[394881845,1764059561557,1245.13227663,6.673e-05,2]
[394881846,1764059561581,1509.23753726,6.673e-05,2]
[394881847,1764059583916,1151.62422839,6.677e-05,2]
[394881848,1764059606675,1151.62422839,6.677e-05,2]
[394881849,1764059629214,1151.62422839,6.677e-05,2]
[394881850,1764059629801,5035.89977757,6.647e-05,2]
[394881851,1764059629832,10000.01,6.647e-05,2]
[394881852,1764059629862,10000.01,6.647e-05,2]
[394881853,1764059629894,10000.01,6.647e-05,2]
[394881854,1764059631080,-638.09561151,6.647e-05,2]
[394881855,1764059635058,-156.81564143,6.647e-05,2]
[394881856,1764059637065,-248.86279623,6.58e-05,2]
[394881857,1764059637094,-15.4680126,6.647e-05,2]
[394881858,1764059639201,-216.16100644,6.647e-05,2]
[394881859,1764059642770,-300.0,6.646e-05,2]
[394881860,1764059646012,-1256.42655987,6.58e-05,2]
[394881861,1764059646073,-351.06817183,6.647e-05,2]
[394881862,1764059648258,-232.40528174,6.647e-05,2]
[394881863,1764059649842,-377.54528005,6.647e-05,2]
[394881864,1764059653270,-274.67365256,6.647e-05,2]
[394881865,1764059653444,7487.15688026,6.58e-05,2]
[394881866,1764059653466,10000.01,6.58e-05,2]
[394881867,1764059657390,-240.15663248,6.58e-05,2]
[394881868,1764059658052,-4365.99144432,6.58e-05,2]
[394881869,1764059659325,-255.58362142,6.647e-05,2]
[394881870,1764059663555,-213.32974665,6.647e-05,2]
[394881871,1764059665878,-222.73237281,6.647e-05,2]
[394881872,1764059668669,1268.02711136,6.58e-05,2]
[394881873,1764059668693,10000.01,6.58e-05,2]
[394881874,1764059668716,5197.45284644,6.58e-05,2]
[394881875,1764059670326,-283.27542998,6.647e-05,2]
[394881876,1764059672879,-195.48687758,6.647e-05,2]
[394881877,1764059674537,-255.42937001,6.647e-05,2]
[394881878,1764059676478,4569.0968819,6.58e-05,2]
[394881879,1764059677213,-152.67237092,6.647e-05,2]
[394881880,1764059680323,-591.48728285,6.647e-05,2]
[394881881,1764059684873,-206.68240134,6.647e-05,2]
[394881882,1764059684967,233.46027166,6.58e-05,2]
[394881883,1764059684992,367.45597593,6.58e-05,2]
[394881884,1764059686991,-291.05898406,6.647e-05,2]
[394881885,1764059690816,-163.44,6.647e-05,2]
[394881886,1764059700614,207.44976171,6.579e-05,2]
[394881887,1764059708947,-176.39025782,6.645e-05,2]
[394881888,1764059762206,158.8936434,6.457e-05,2]
[394881890,1764060102951,501.436,6.514e-05,2]
[394881891,1764060102982,186.09547447,6.514e-05,2]
[394881892,1764060207750,-388.80755459,6.644e-05,2]
[394881893,1764060209289,-221.88650138,6.644e-05,2]
[394881894,1764060214600,-223.30748358,6.644e-05,2]
[394881895,1764060217978,-209.84813309,6.644e-05,2]
[394881896,1764060220885,-156.15032736,6.644e-05,2]
[394881897,1764060220905,-53.11595833,6.644e-05,2]
[394881898,1764060222478,-163.49035014,6.644e-05,2]
[394881899,1764060222622,456.15032736,6.578e-05,2]
[394881900,1764060222791,-83.39369153,6.644e-05,2]
[394881901,1764060224070,-215.0369549,6.644e-05,2]
[394881902,1764060230556,-99.5803061,6.644e-05,2]
[394881903,1764060230580,-119.54073498,6.644e-05,2]
[394881904,1764060232728,-87.14166636,6.644e-05,2]
[394881905,1764060232749,-300.0,6.645e-05,2]
[394881906,1764060232770,-26.70306865,6.645e-05,2]
[394881907,1764060234982,-273.29693135,6.645e-05,2]
[394881908,1764060235005,-92.37945988,6.645e-05,2]
[394881909,1764060238062,-1107.62054012,6.645e-05,2]
[394881910,1764060238119,-232.50700278,6.646e-05,2]
[394881911,1764060240232,1229.91844106,6.644e-05,2]
[394881912,1764060240266,-171.15173759,6.646e-05,2]
[394881913,1764060242719,300.0,6.645e-05,2]
[394881914,1764060244073,-96.34125963,6.646e-05,2]
[394881915,1764060244099,-188.59668836,6.646e-05,2]
[394881916,1764060245525,2577.78385619,6.579e-05,2]
[394881917,1764060246769,-265.92996026,6.646e-05,2]
[394881918,1764060249379,-45.47335138,6.646e-05,2]
[394881919,1764060249400,-157.69450115,6.646e-05,2]
[394881920,1764060249421,-165.12552179,6.646e-05,2]
[394881921,1764060252612,-334.87447821,6.646e-05,2]
[394881922,1764060252633,-101.66216168,6.646e-05,2]
[394881923,1764060253769,-398.33783832,6.646e-05,2]
[394881924,1764060253803,-500.0,6.646e-05,2]
[394881925,1764060253837,-500.0,6.646e-05,2]
[394881926,1764060253870,-500.0,6.646e-05,2]
[394881927,1764060253902,-500.0,6.646e-05,2]
[394881928,1764060253934,-500.0,6.646e-05,2]
[394881929,1764060253966,-500.0,6.646e-05,2]
[394881930,1764060253998,-500.0,6.646e-05,2]
[394881931,1764060254030,-500.0,6.646e-05,2]
[394881932,1764060254062,-500.0,6.646e-05,2]
[394881933,1764060254231,-500.0,6.646e-05,2]
[394881934,1764060254263,-500.0,6.646e-05,2]
[394881935,1764060254293,-500.0,6.646e-05,2]
[394881936,1764060254323,-500.0,6.646e-05,2]
[394881937,1764060254354,-500.0,6.646e-05,2]
[394881938,1764060254384,-500.0,6.646e-05,2]
[394881939,1764060254415,-500.0,6.646e-05,2]
[394881940,1764060254447,-500.0,6.646e-05,2]
[394881941,1764060254643,-357.15190268,6.646e-05,2]
[394881942,1764060254678,-500.0,6.646e-05,2]
[394881943,1764060254815,-500.0,6.646e-05,2]
[394881944,1764060254846,-500.0,6.646e-05,2]
[394881945,1764060254878,-500.0,6.646e-05,2]
[394881946,1764060254909,-500.0,6.646e-05,2]
[394881947,1764060254942,-491.9922734,6.646e-05,2]
[394881948,1764060254976,-500.0,6.646e-05,2]
[394881949,1764060255582,-187.05912285,6.647e-05,2]
[394881950,1764060257733,-317.33567755,6.647e-05,2]
[394881951,1764060260082,-215.34911615,6.647e-05,2]
[394881952,1764060264098,-170.59340552,6.647e-05,2]
[394881953,1764060268743,-165.54453189,6.647e-05,2]
[394881954,1764060268908,2246.03524453,6.58e-05,2]
[394881955,1764060270277,-154.55999111,6.647e-05,2]
[394881956,1764060272958,-2620.43609803,6.647e-05,2]
[394881957,1764060275477,-10000.01,6.647e-05,2]
[394881958,1764060275599,-10000.01,6.647e-05,2]
[394881959,1764060275719,-10000.01,6.647e-05,2]
[394881960,1764060275827,-10000.01,6.647e-05,2]
[394881961,1764060275926,-10000.01,6.647e-05,2]
[394881965,1764060286517,-189.91196234,6.58e-05,2]
[394881966,1764060288603,-197.74581279,6.58e-05,2]
[394881967,1764060292304,-270.88181831,6.514e-05,2]
[394881968,1764060294382,-317.33567755,6.514e-05,2]
[394881969,1764060296125,-175.36913142,6.514e-05,2]
[394881970,1764060298802,-235.1997799,6.514e-05,2]
[394881971,1764060300160,1025.5963556,6.449e-05,2]
[394881972,1764060302099,-170.74272771,6.514e-05,2]
[394881973,1764060303805,-270.3388795,6.514e-05,2]
[394881974,1764060306090,-382.94834772,6.514e-05,2]
[394881975,1764060308533,-226.56120338,6.514e-05,2]
[394881976,1764060310618,-223.12996006,6.514e-05,2]
[394881977,1764060313218,-189.04362858,6.514e-05,2]
[394881978,1764060315353,-269.74083309,6.514e-05,2]
[394881979,1764060317448,-171.39855765,6.514e-05,2]
[394881980,1764060319623,-191.97854157,6.514e-05,2]
[394881981,1764060322290,-264.7672137,6.514e-05,2]
[394881982,1764060324905,-173.84884742,6.514e-05,2]
[394881983,1764060326921,-167.07545631,6.514e-05,2]
[394881984,1764060328899,-276.91768948,6.514e-05,2]
[394881985,1764060333402,-300.0,6.514e-05,2]
[394881986,1764060335187,-354.03306197,6.514e-05,2]
[394881987,1764060336842,-284.49386959,6.514e-05,2]
[394881988,1764060338605,-220.54876471,6.514e-05,2]
[394881989,1764060341266,-183.53429916,6.514e-05,2]
[394881990,1764060342790,-168.11075791,6.514e-05,2]
[394881991,1764060345106,-202.95329343,6.514e-05,2]
[394881992,1764060347387,-299.58265742,6.514e-05,2]
[394881993,1764060349193,-291.64286549,6.514e-05,2]
[394881994,1764060350839,-234.05572851,6.514e-05,2]
[394881995,1764060354807,-300.0,6.514e-05,2]
[394881996,1764060356346,-166.55931974,6.514e-05,2]
[394881997,1764060358334,-255.56420924,6.514e-05,2]
[394881998,1764060360908,-266.0,6.514e-05,2]
[394881999,1764060363703,-178.28033892,6.514e-05,2]
[394882001,1764060465994,-184.47358197,6.514e-05,2]
[394882002,1764060466015,-3.32502807,6.547e-05,2]
[394882003,1764060477382,304.99988771,6.481e-05,2]
[394882004,1764060485258,304.99988771,6.481e-05,2]
[394882005,1764060487032,-304.99988771,6.547e-05,2]
[394882006,1764060487054,-0.09476399,6.578e-05,2]
[394882007,1764060488761,-173.8309641,6.578e-05,2]
[394882008,1764060497551,-126.07427191,6.578e-05,2]
[394882009,1764060497572,-79.33183314,6.579e-05,2]
[394882010,1764060500442,2620.66816686,6.513e-05,2]
[394882011,1764060503437,-160.35187738,6.579e-05,2]
[394882012,1764060505972,-163.77616724,6.579e-05,2]
[394882013,1764060508811,2296.54012224,6.513e-05,2]
[394882014,1764060509018,-174.04848096,6.579e-05,2]
[394882015,1764060517554,-545.2777063,6.579e-05,2]
[394882016,1764060521478,-77.21393498,6.579e-05,2]
[394882017,1764060521499,-128.6188885,6.579e-05,2]
[394882018,1764060524008,1371.3811115,6.513e-05,2]
[394882019,1764060524246,-171.3811115,6.579e-05,2]
[394882020,1764060524268,-4.98456738,6.579e-05,2]
[394882021,1764060528784,-382.10041957,6.579e-05,2]
[394882022,1764060532202,-178.4878793,6.579e-05,2]
[394882023,1764060533522,812.91501305,6.513e-05,2]
[394882024,1764060534507,-234.21936895,6.579e-05,2]
[394882025,1764060538480,-270.62164725,6.579e-05,2]
[394882065,1764060631990,-129.58611755,6.579e-05,2]
[394882067,1764060631999,-292.17888245,6.622e-05,2]
[394882069,1764060632015,-7.82111755,6.622e-05,2]
[394882071,1764060632024,-300.0,6.622e-05,2]
[394882072,1764060632033,-300.0,6.622e-05,2]
[394882074,1764060632043,-1200.0,6.622e-05,2]
[394882075,1764060632053,-500.82482223,6.623e-05,2]
[394882076,1764060632062,-509.67394628,6.623e-05,2]
[394882077,1764060632071,-500.0,6.623e-05,2]
[394882078,1764060632080,-500.0,6.623e-05,2]
[394882079,1764060632089,-506.55512657,6.623e-05,2]
[394882080,1764060632099,-500.0,6.623e-05,2]
[394882081,1764060632108,-500.0,6.623e-05,2]
[394882082,1764060632117,-500.0,6.623e-05,2]
[394882083,1764060632127,-500.0,6.623e-05,2]
[394882084,1764060632136,-500.0,6.623e-05,2]
[394882085,1764060632145,-607.6061764,6.623e-05,2]
[394882086,1764060632154,-500.0,6.623e-05,2]
[394882087,1764060632163,-524.85127985,6.623e-05,2]
[394882088,1764060632173,-577.25766605,6.623e-05,2]
[394882089,1764060632182,-500.71762638,6.623e-05,2]
[394882090,1764060632191,-500.0,6.623e-05,2]
[394882091,1764060632205,-500.0,6.623e-05,2]
[394882092,1764060632214,-500.0,6.623e-05,2]
[394882093,1764060632223,-500.0,6.623e-05,2]
[394882094,1764060632232,-440.47888466,6.623e-05,2]
[394882095,1764060632242,-514.45233689,6.623e-05,2]
[394882096,1764060632252,-502.35107951,6.623e-05,2]
[394882097,1764060632261,-501.40325883,6.623e-05,2]
[394882098,1764060632270,-500.0,6.623e-05,2]
[394882099,1764060632281,-500.0,6.644e-05,2]
[394882100,1764060632290,-500.0,6.644e-05,2]
[394882101,1764060632300,-500.0,6.644e-05,2]
[394882102,1764060632311,-500.0,6.644e-05,2]
[394882103,1764060632320,-500.0,6.644e-05,2]
[394882104,1764060632329,-500.0,6.644e-05,2]
[394882105,1764060632339,-500.0,6.644e-05,2]
[394882106,1764060632348,-254.36981389,6.644e-05,2]
[394882107,1764060632357,-500.0,6.644e-05,2]
[394882108,1764060632367,-500.0,6.644e-05,2]
[394882109,1764060632376,-281.66588472,6.644e-05,2]
[394882110,1764060632385,-500.0,6.644e-05,2]
[394882111,1764060632395,-500.0,6.644e-05,2]
[394882112,1764060632405,-500.0,6.644e-05,2]
[394882113,1764060632414,-500.0,6.644e-05,2]
[394882114,1764060632424,-500.0,6.644e-05,2]
[394882115,1764060632433,-500.0,6.644e-05,2]
[394882116,1764060632442,-500.0,6.644e-05,2]
[394882117,1764060632452,-500.0,6.644e-05,2]
[394882118,1764060632461,-500.0,6.644e-05,2]
[394882119,1764060632470,-500.0,6.644e-05,2]
[394882120,1764060632479,-500.0,6.644e-05,2]
[394882121,1764060632489,-500.0,6.644e-05,2]
[394882122,1764060632499,-500.0,6.644e-05,2]